bitfinex/quotes_BTCUSD_20250904
["timestamp","ask_amount","ask_price","bid_price","bid_amount"]
[1756962222916,1.11285431,110890.0,110880.0,0.04324678]
[1756962223124,2.3802743,110890.0,110880.0,0.04324678]
[1756962223951,2.35985548,110890.0,110880.0,0.04528678]
[1756962224345,2.35985548,110890.0,110880.0,0.04324678]
[1756962226356,2.23900146,110890.0,110880.0,0.04528678]
[1756962226561,2.26472482,110890.0,110880.0,0.04809678]
[1756962226761,2.2148547,110890.0,110880.0,0.04528678]
[1756962227003,2.26472482,110890.0,110880.0,0.04528678]
[1756962227203,2.2148547,110890.0,110880.0,0.04528678]
[1756962227357,2.35656081,110890.0,110880.0,0.04528678]
[1756962227848,1.0392707,110890.0,110880.0,0.04528678]
[1756962228059,2.35656081,110890.0,110880.0,0.04528678]
[1756962228688,2.35866081,110890.0,110880.0,0.04528678]
[1756962228887,2.31173069,110890.0,110880.0,0.04528678]
[1756962229169,2.36160081,110890.0,110880.0,0.04528678]
[1756962229567,2.31173069,110890.0,110880.0,0.04528678]
[1756962229777,1.53722538,110890.0,110880.0,0.04528678]
[1756962229975,1.7504555,110890.0,110880.0,0.04809678]
[1756962230815,1.7504555,110890.0,110880.0,0.04528678]
[1756962231633,0.90550884,110890.0,110880.0,0.04528678]
[1756962231816,1.7504555,110890.0,110880.0,0.04528678]
[1756962232011,1.84237149,110890.0,110880.0,0.04528678]
[1756962234099,1.84213149,110890.0,110880.0,0.04809678]
[1756962235081,1.5870955,110890.0,110880.0,0.04809678]
[1756962235302,0.59731036,110890.0,110880.0,0.22847196]
[1756962235519,1.42489811,110890.0,110880.0,0.22847196]
[1756962235722,1.60525702,110890.0,110880.0,0.22847196]
[1756962236152,0.61705491,110890.0,110880.0,0.22847196]
[1756962236360,0.92994025,110890.0,110880.0,0.22847196]
[1756962236794,1.35241358,110890.0,110880.0,0.22847196]
[1756962236995,0.68782583,110890.0,110880.0,0.22847196]
[1756962237211,1.35241358,110890.0,110880.0,0.22847196]
[1756962237416,1.53277249,110890.0,110880.0,0.22847196]
[1756962237827,1.35241358,110890.0,110880.0,0.22847196]
[1756962238230,1.53277249,110890.0,110880.0,0.22847196]
[1756962239692,0.92994025,110890.0,110880.0,0.32038795]
[1756962240320,0.00446692,110890.0,110880.0,0.32038795]
[1756962240528,0.00446692,110890.0,110880.0,0.48314795]
[1756962240736,0.42694025,110890.0,110880.0,0.48314795]
[1756962241353,0.42294025,110890.0,110880.0,0.32038795]
[1756962241557,0.00146692,110890.0,110880.0,0.48310795]
[1756962241767,0.00346692,110890.0,110880.0,0.48310795]
[1756962241976,0.42594025,110890.0,110880.0,0.48310795]
[1756962242598,0.42594025,110890.0,110880.0,0.48298795]
[1756962244702,0.42594025,110890.0,110880.0,0.32038795]
[1756962244923,1.02877249,110890.0,110880.0,0.13720277]
[1756962245132,1.19685249,110890.0,110880.0,0.13720277]
[1756962245980,1.19181249,110890.0,110880.0,0.13720277]
[1756962246183,1.19685249,110890.0,110880.0,0.13720277]
[1756962246382,1.19685249,110890.0,110880.0,0.04528678]
[1756962246593,1.19181249,110890.0,110880.0,0.22566196]
[1756962246801,0.58898025,110890.0,110880.0,0.22566196]
[1756962247018,0.58898025,110890.0,110880.0,0.22847196]
[1756962247019,0.00346692,110890.0,110880.0,0.22847196]
[1756962247238,0.00346692,110890.0,110880.0,0.32038795]
[1756962247519,0.42594025,110890.0,110880.0,0.32038795]
[1756962248196,0.00346692,110890.0,110880.0,0.32038795]
[1756962248406,0.60629916,110890.0,110880.0,0.31757795]
[1756962248625,0.60629916,110890.0,110880.0,0.48037795]
[1756962249294,0.00346692,110890.0,110880.0,0.48318795]
[1756962249506,0.42594025,110890.0,110880.0,0.48318795]
[1756962250997,0.00346692,110890.0,110880.0,0.48318795]
[1756962251219,0.42594025,110890.0,110880.0,0.48318795]
[1756962251808,0.42594025,110890.0,110880.0,0.32038795]
[1756962252014,0.42594025,110890.0,110880.0,0.48025795]
[1756962252827,0.60629916,110890.0,110880.0,0.31757795]
[1756962253226,0.61141916,110890.0,110880.0,0.48017795]
[1756962253486,0.61141916,110890.0,110880.0,0.48013795]
[1756962253978,0.61141916,110890.0,110880.0,0.48009795]
[1756962254390,0.18894583,110890.0,110880.0,0.48009795]
[1756962254539,0.61141916,110890.0,110880.0,0.48009795]
[1756962255937,0.61141916,110890.0,110880.0,0.31757795]
[1756962256426,0.61141916,110890.0,110880.0,0.47989795]
[1756962257375,0.61141916,110890.0,110880.0,0.47985795]
[1756962258418,0.61141916,110890.0,110880.0,0.31757795]
[1756962258595,0.61141916,110890.0,110880.0,0.47977795]
[1756962259718,0.61141916,110890.0,110880.0,0.47965795]
[1756962260320,0.61141916,110890.0,110880.0,0.47949795]
[1756962260444,0.43106025,110890.0,110880.0,0.47949795]
[1756962260667,0.00858692,110890.0,110880.0,0.47949795]
[1756962261092,0.43106025,110890.0,110880.0,0.47949795]
[1756962261719,1.03389249,110890.0,110880.0,0.47949795]
[1756962261939,1.03389249,110890.0,110880.0,0.47745795]
[1756962262142,0.61141916,110890.0,110880.0,0.47958795]
[1756962262506,0.18894583,110890.0,110880.0,0.47958795]
[1756962262718,0.60839916,110890.0,110880.0,0.47958795]
[1756962262924,0.43106025,110890.0,110880.0,0.47958795]
[1756962263124,0.61141916,110890.0,110880.0,0.47958795]
[1756962263332,0.61141916,110890.0,110880.0,0.47930795]
[1756962263534,1.03389249,110890.0,110880.0,0.47930795]
[1756962263743,0.18894583,110890.0,110880.0,0.47930795]
[1756962264179,0.61141916,110890.0,110880.0,0.47930795]
[1756962266518,0.42804025,110890.0,110880.0,0.47930795]
[1756962266715,0.42594025,110890.0,110880.0,0.47930795]
[1756962267611,0.00346692,110890.0,110880.0,0.47930795]
[1756962267843,0.57150651,110890.0,110880.0,0.47930795]
[1756962268069,0.75186542,110890.0,110880.0,0.47930795]
[1756962269234,0.75186542,110890.0,110880.0,0.31553795]
[1756962269449,0.75186542,110890.0,110880.0,0.47685795]
[1756962270287,0.75186542,110890.0,110880.0,0.29648277]
[1756962270499,0.75186542,110890.0,110880.0,0.47685795]
[1756962271724,0.75186542,110890.0,110880.0,0.29648277]
[1756962271963,1.09186542,110890.0,110880.0,0.29604277]
[1756962273751,1.09186542,110890.0,110880.0,0.47641795]
[1756962274401,0.52894583,110890.0,110880.0,0.47641795]
[1756962274644,1.09186542,110890.0,110880.0,0.47641795]
[1756962275054,0.52894583,110890.0,110880.0,0.47641795]
[1756962275289,1.09186542,110890.0,110880.0,0.47854795]
[1756962275517,0.52894583,110890.0,110880.0,0.47854795]
[1756962275733,1.09186542,110890.0,110880.0,0.47854795]
[1756962276581,1.09186542,110890.0,110880.0,0.47822795]
[1756962277501,0.52894583,110890.0,110880.0,0.47822795]
[1756962277716,1.09186542,110890.0,110880.0,0.47822795]
[1756962278455,0.91150651,110890.0,110880.0,0.47822795]
[1756962279819,1.09186542,110890.0,110880.0,0.47822795]
[1756962280044,0.90848651,110890.0,110880.0,0.47822795]
[1756962280700,0.91152651,110890.0,110880.0,0.47822795]
[1756962281187,0.90638651,110890.0,110880.0,0.47822795]
[1756962281398,0.34346692,110890.0,110880.0,0.48103795]
[1756962281606,0.90638651,110890.0,110880.0,0.48103795]
[1756962282453,0.90638651,110890.0,110880.0,0.47822795]
[1756962283074,0.34346692,110890.0,110880.0,0.47822795]
[1756962283285,0.90638651,110890.0,110880.0,0.47822795]
[1756962283505,1.09177542,110890.0,110880.0,0.13729277]
[1756962283659,1.09177542,110890.0,110880.0,0.47565795]
[1756962284820,1.09177542,110890.0,110880.0,0.47777795]
[1756962285398,0.52885583,110890.0,110880.0,0.47777795]
[1756962285599,1.09177542,110890.0,110880.0,0.47777795]
[1756962286425,1.09177542,110890.0,110880.0,0.47565795]
[1756962286973,1.08674542,110890.0,110880.0,0.47777795]
[1756962287183,0.90638651,110890.0,110880.0,0.47777795]
[1756962288396,0.00346692,110890.0,110880.0,0.48058795]
[1756962290315,0.00346692,110890.0,110880.0,1.04350754]
[1756962290717,0.00346692,110890.0,110880.0,0.50152677]
[1756962291137,0.00346692,110890.0,110880.0,1.06907649]
[1756962291342,0.00346692,110890.0,110880.0,1.06920637]
[1756962291706,0.00346692,110890.0,110880.0,0.50628678]
[1756962291878,0.00346692,110890.0,110880.0,1.06920637]
[1756962292322,0.00346692,110890.0,110880.0,1.07812792]
[1756962294522,0.00346692,110890.0,110880.0,1.10522698]
[1756962295948,0.00346692,110890.0,110880.0,0.54230739]
[1756962296146,0.00346692,110890.0,110880.0,1.10522698]
[1756962300019,0.00346692,110890.0,110880.0,0.54230739]
[1756962300227,0.00346692,110890.0,110880.0,1.10522698]
[1756962301088,0.00346692,110890.0,110880.0,0.37937739]
[1756962301306,0.00346692,110890.0,110880.0,1.10518698]
[1756962301940,0.00849692,110890.0,110880.0,0.35168844]
[1756962302159,0.00346692,110890.0,110880.0,0.47773795]
[1756962302365,0.00246692,110890.0,110880.0,1.04822755]
[1756962302578,0.00246692,110890.0,110880.0,0.50624678]
[1756962302792,0.00246692,110890.0,110880.0,1.06916637]
[1756962303003,0.00346692,110890.0,110880.0,0.91008637]
[1756962303202,0.00346692,110890.0,110880.0,0.50443678]
[1756962303203,0.00849692,110890.0,110880.0,0.50443678]
[1756962303442,0.00649692,110890.0,110880.0,0.53153614]
[1756962303642,0.00649692,110890.0,110880.0,0.54044594]
[1756962303846,0.00246692,110890.0,110880.0,0.54444594]
[1756962304091,0.00146692,110890.0,110880.0,0.54344594]
[1756962304467,0.00246692,110890.0,110880.0,0.54644594]
[1756962305043,0.00072756,110900.0,110890.0,0.18035891]
[1756962305289,0.56291959,110910.0,110900.0,0.18034265]
[1756962305502,0.02493,110910.0,110900.0,0.27225864]
[1756962305715,0.58784959,110910.0,110900.0,0.27225864]
[1756962306766,0.76917598,110910.0,110900.0,0.43429864]
[1756962306983,0.77221598,110910.0,110900.0,0.43429864]
[1756962307185,0.20929639,110910.0,110900.0,0.43429864]
[1756962307394,0.79931702,110910.0,110900.0,0.43429864]
[1756962307827,1.13931702,110910.0,110900.0,0.25395599]
[1756962308759,1.14031702,110910.0,110900.0,0.25595599]
[1756962309340,1.18568689,110910.0,110900.0,0.16404]
[1756962309565,1.23555701,110910.0,110900.0,0.004]
[1756962311281,1.18568689,110910.0,110900.0,0.004]
[1756962311547,1.23555701,110910.0,110900.0,0.004]
[1756962312171,1.31681348,110910.0,110900.0,0.004]
[1756962312383,1.23555701,110910.0,110900.0,0.004]
[1756962312612,1.39559701,110910.0,110900.0,0.004]
[1756962312830,1.46491701,110910.0,110900.0,0.004]
[1756962313244,1.46391701,110910.0,110900.0,0.002]
[1756962313492,1.46491701,110910.0,110900.0,0.003]
[1756962313706,1.50845999,110910.0,110900.0,0.003]
[1756962314053,1.53278119,110910.0,110900.0,0.003]
[1756962314267,1.53178119,110910.0,110900.0,0.001]
[1756962314675,1.53178119,110910.0,110900.0,0.002]
[1756962315508,1.32819821,110910.0,110900.0,0.002]
[1756962315716,1.48823821,110910.0,110900.0,0.002]
[1756962317830,1.46391701,110910.0,110900.0,0.002]
[1756962321243,1.30387701,110910.0,110900.0,0.002]
[1756962321448,1.46391701,110910.0,110900.0,0.002]
[1756962321981,0.99291341,110910.0,110900.0,0.002]
[1756962322189,1.5801542,110910.0,110900.0,0.002]
[1756962322403,1.01723461,110910.0,110900.0,0.002]
[1756962322605,1.69418018,110910.0,110900.0,0.002]
[1756962323024,1.715119,110910.0,110900.0,0.002]
[1756962323436,1.715119,110910.0,110900.0,0.001]
[1756962323617,1.715119,110910.0,110900.0,0.002]
[1756962323618,1.69400901,110910.0,110900.0,0.002]
[1756962323816,1.69300901,110910.0,110900.0,0.001]
[1756962324032,1.69400901,110910.0,110900.0,0.001]
[1756962324251,0.87913343,110910.0,110900.0,0.001]
[1756962324439,0.56571252,110900.0,110890.0,0.0001401]
[1756962324796,1.12863211,110900.0,110890.0,0.0001401]
[1756962325020,1.18370223,110900.0,110890.0,0.0001401]
[1756962325483,0.62078264,110900.0,110890.0,0.0001401]
[1756962325696,1.27561822,110900.0,110890.0,0.0001401]
[1756962326617,1.36854343,110900.0,110890.0,0.0001401]
[1756962326825,1.20802343,110900.0,110890.0,0.0001401]
[1756962327032,1.20902343,110900.0,110890.0,0.0011401]
[1756962327237,1.37158343,110900.0,110890.0,0.0021401]
[1756962329450,0.80866384,110900.0,110890.0,0.0021401]
[1756962329632,2.07548059,110900.0,110890.0,0.0021401]
[1756962330090,0.80866384,110900.0,110890.0,0.0021401]
[1756962330236,2.10259049,110900.0,110890.0,0.0021401]
[1756962330485,0.30569254,110900.0,110890.0,0.0071701]
[1756962330697,1.49023704,110900.0,110890.0,0.0071701]
[1756962330871,1.31071704,110900.0,110890.0,0.0071701]
[1756962331269,0.80617254,110900.0,110890.0,0.18752901]
[1756962331497,1.65071704,110900.0,110890.0,0.18752901]
[1756962331701,1.65071704,110900.0,110890.0,0.0071701]
[1756962332108,1.65071704,110900.0,110890.0,0.18752901]
[1756962333160,1.49023704,110900.0,110890.0,0.18752901]
[1756962333334,1.65083704,110900.0,110890.0,0.18752901]
[1756962333619,0.62582989,110900.0,110890.0,0.18752901]
[1756962334175,1.65087704,110900.0,110890.0,0.18752901]
[1756962334893,0.80633254,110900.0,110890.0,0.18752901]
[1756962335303,1.65087704,110900.0,110890.0,0.18752901]
[1756962335705,1.65087704,110900.0,110890.0,0.18452901]
[1756962337736,1.65290704,110900.0,110890.0,0.18452901]
[1756962338100,1.49226704,110900.0,110890.0,0.18452901]
[1756962338314,1.65250704,110900.0,110890.0,0.18452901]
[1756962338525,0.46534989,110900.0,110890.0,0.18752901]
[1756962338734,0.0301099,110900.0,110890.0,0.279445]
[1756962338951,0.45238215,110900.0,110890.0,0.279445]
[1756962339559,0.0301099,110900.0,110890.0,0.279445]
[1756962339766,0.45238215,110900.0,110890.0,0.279445]
[1756962340185,0.45238215,110900.0,110890.0,0.439725]
[1756962340803,0.0301099,110900.0,110890.0,0.439725]
[1756962341209,0.45238215,110900.0,110890.0,0.439725]
[1756962342294,0.003,110900.0,110890.0,0.86199725]
[1756962342737,0.003,110900.0,110890.0,0.439725]
[1756962345003,0.003,110900.0,110890.0,0.86199725]
[1756962345429,0.003,110900.0,110890.0,0.439725]
[1756962345640,0.003,110900.0,110890.0,0.86199725]
[1756962346480,0.003,110900.0,110890.0,0.44897111]
[1756962346685,0.002,110900.0,110890.0,0.87024336]
[1756962346916,0.001,110900.0,110890.0,0.87224336]
[1756962347336,0.002,110900.0,110890.0,0.87524336]
[1756962347541,0.002,110900.0,110890.0,0.45297111]
[1756962347794,0.002,110900.0,110890.0,0.283445]
[1756962348036,0.8514845,110900.0,110890.0,0.278415]
[1756962348260,0.8514845,110900.0,110890.0,0.439055]
[1756962348470,0.42627225,110900.0,110890.0,0.441215]
[1756962348695,0.42921225,110900.0,110890.0,0.441375]
[1756962348923,0.00694,110900.0,110890.0,0.441375]
[1756962349138,1.03182715,110900.0,110890.0,0.278415]
[1756962349434,1.41719702,110900.0,110890.0,0.0061401]
[1756962349646,1.51778337,110900.0,110890.0,0.0061401]
[1756962349867,1.54210457,110900.0,110890.0,0.0061401]
[1756962350309,1.54110457,110900.0,110890.0,0.0031401]
[1756962350737,1.54010457,110900.0,110890.0,0.0001401]
[1756962350954,1.54110457,110900.0,110890.0,0.0011401]
[1756962351366,0.69656007,110900.0,110890.0,0.0001401]
[1756962351588,1.51578337,110900.0,110890.0,0.0001401]
[1756962351837,0.67223887,110900.0,110890.0,0.0021401]
[1756962352058,1.51778337,110900.0,110890.0,0.0031401]
[1756962353125,1.51678337,110900.0,110890.0,0.0011401]
[1756962353340,1.67862337,110900.0,110890.0,0.0021401]
[1756962354227,0.83407887,110900.0,110890.0,0.0021401]
[1756962354449,0.83407887,110900.0,110890.0,0.18249901]
[1756962354658,1.29207085,110900.0,110890.0,0.18249901]
[1756962354877,0.37110623,110900.0,110890.0,0.276575]
[1756962355089,0.342,110900.0,110890.0,0.279645]
[1756962355535,0.76427225,110900.0,110890.0,0.279645]
[1756962355997,0.76427225,110900.0,110890.0,0.09405609]
[1756962355998,1.37182715,110900.0,110890.0,0.09405609]
[1756962356201,1.67557326,110900.0,110890.0,0.0021401]
[1756962356412,0.83241384,110900.0,110890.0,0.0021401]
[1756962356617,1.65263714,110900.0,110890.0,0.0021401]
[1756962357288,2.07490939,110900.0,110890.0,0.0021401]
[1756962357701,1.65263714,110900.0,110890.0,0.0021401]
[1756962358487,1.67974344,110900.0,110890.0,0.0021401]
[1756962360363,0.83519894,110900.0,110890.0,0.0021401]
[1756962360576,1.67974344,110900.0,110890.0,0.0021401]
[1756962364936,0.83487894,110900.0,110890.0,0.0021401]
[1756962365140,0.83507894,110900.0,110890.0,0.0021401]
[1756962365349,1.67994344,110900.0,110890.0,0.0021401]
[1756962368877,1.65633344,110900.0,110890.0,0.0021401]
[1756962369708,0.81178894,110900.0,110890.0,0.0041701]
[1756962369919,1.65609344,110900.0,110890.0,0.0021401]
[1756962370154,1.65609344,110900.0,110890.0,0.0041701]
[1756962370331,1.65609344,110900.0,110890.0,0.0021401]
[1756962370496,0.81154894,110900.0,110890.0,0.0021401]
[1756962370706,1.65609344,110900.0,110890.0,0.0021401]
[1756962370908,0.81154894,110900.0,110890.0,0.0041701]
[1756962371110,0.81154894,110900.0,110890.0,0.0021401]
[1756962371321,1.65609344,110900.0,110890.0,0.0021401]
[1756962371921,1.65605344,110900.0,110890.0,0.0021401]
[1756962372148,0.002,110900.0,110890.0,0.93960804]
[1756962372371,0.002,110900.0,110890.0,0.95829238]
[1756962372569,0.002,110900.0,110890.0,0.96305239]
[1756962372980,0.002,110900.0,110890.0,0.88950608]
[1756962373382,0.002,110900.0,110890.0,0.44162488]
[1756962373582,0.002,110900.0,110890.0,0.48279876]
[1756962374037,0.001,110900.0,110890.0,0.48179876]
[1756962374327,0.002,110900.0,110890.0,0.48279876]
[1756962374809,0.001,110900.0,110890.0,0.440495]
[1756962375006,0.002,110900.0,110890.0,0.443495]
[1756962375239,0.002,110900.0,110890.0,0.44362488]
[1756962375417,0.002,110900.0,110890.0,0.443495]
[1756962375650,0.002,110900.0,110890.0,0.44362488]
[1756962376260,0.002,110900.0,110890.0,0.87485723]
[1756962376464,0.001,110900.0,110890.0,0.87385723]
[1756962377118,0.001,110900.0,110890.0,0.87372735]
[1756962377364,0.001,110900.0,110890.0,0.89466617]
[1756962377569,0.001,110900.0,110890.0,0.8992963]
[1756962377777,0.001,110900.0,110890.0,0.89942618]
[1756962378420,0.001,110900.0,110890.0,0.94031972]
[1756962378632,0.001,110900.0,110890.0,0.51804747]
[1756962378854,0.001,110900.0,110890.0,0.94031972]
[1756962379072,0.001,110900.0,110890.0,1.36259197]
[1756962379295,0.001,110900.0,110890.0,0.94031972]
[1756962379508,0.3,110920.0,110910.0,0.18032639]
[1756962379715,0.3,110920.0,110910.0,0.92531463]
[1756962379971,0.3,110920.0,110910.0,0.93055463]
[1756962380160,0.3,110920.0,110910.0,0.95149345]
[1756962380567,0.3,110920.0,110910.0,0.52935108]
[1756962380770,0.3,110920.0,110910.0,0.95162333]
[1756962380999,0.3,110920.0,110910.0,0.52935108]
[1756962381233,0.301,110920.0,110910.0,0.95262333]
[1756962382512,0.301,110920.0,110910.0,0.95725346]
[1756962383556,0.301,110920.0,110910.0,0.95713346]
[1756962384609,0.301,110920.0,110910.0,0.98422562]
[1756962385054,0.301,110920.0,110910.0,0.56195337]
[1756962385260,0.301,110920.0,110910.0,0.98422562]
[1756962385463,0.3,110920.0,110910.0,0.98322562]
[1756962386788,0.301,110920.0,110910.0,1.40849787]
[1756962386993,0.00321,110960.0,110950.0,0.18026137]
[1756962387208,0.42760225,110960.0,110950.0,0.43365736]
[1756962387422,0.42439225,110960.0,110950.0,0.43568736]
[1756962387691,0.42439225,110960.0,110950.0,0.27420736]
[1756962387898,0.42760225,110960.0,110950.0,0.43365736]
[1756962388327,0.42760225,110960.0,110950.0,0.43582746]
[1756962388532,0.42960225,110960.0,110950.0,0.43582746]
[1756962388746,0.42960225,110960.0,110950.0,0.27231746]
[1756962388953,0.42960225,110960.0,110950.0,0.43367746]
[1756962389792,0.00733,110960.0,110950.0,0.43367746]
[1756962389996,0.42639225,110960.0,110950.0,0.43570746]
[1756962390218,0.42639225,110960.0,110950.0,0.43891746]
[1756962390219,0.002,110960.0,110950.0,0.43891746]
[1756962390421,0.002,110960.0,110950.0,0.88212853]
[1756962390630,0.002,110960.0,110950.0,0.45969628]
[1756962390832,0.002,110960.0,110950.0,0.88196853]
[1756962391700,0.002,110960.0,110950.0,0.45969628]
[1756962392110,0.002,110960.0,110950.0,1.02165249]
[1756962392327,0.002,110960.0,110950.0,1.02628262]
[1756962392540,0.002,110960.0,110950.0,1.0152125]
[1756962392748,0.002,110960.0,110950.0,1.1762925]
[1756962393163,0.002,110960.0,110950.0,1.20337143]
[1756962393572,0.00321,110990.0,110980.0,0.18021265]
[1756962393782,0.56728621,110990.0,110980.0,0.50244864]
[1756962394606,0.00533,110990.0,110980.0,0.50244864]
[1756962395014,0.00633,110990.0,110980.0,0.50544864]
[1756962395191,0.00633,110990.0,110980.0,0.50747864]
[1756962395643,0.56828621,110990.0,110980.0,0.50532864]
[1756962395847,0.77320262,110990.0,110980.0,0.50532864]
[1756962396258,0.21124641,110990.0,110980.0,0.50532864]
[1756962396461,0.77320262,110990.0,110980.0,0.16419599]
[1756962396639,0.77320262,110990.0,110980.0,0.34440864]
[1756962396840,0.77320262,110990.0,110980.0,0.50524864]
[1756962397688,0.97018097,110990.0,110980.0,0.50524864]
[1756962397889,0.97018097,110990.0,110980.0,0.16419599]
[1756962398095,1.40542096,110990.0,110980.0,0.16384]
[1756962398552,1.40542096,110990.0,110980.0,0.16368]
[1756962398739,1.40542096,110990.0,110980.0,0.003]
[1756962398946,1.40542096,110990.0,110980.0,0.16372]
[1756962399148,1.40542096,110990.0,110980.0,0.003]
[1756962399461,1.40542096,110990.0,110980.0,0.16368]
[1756962399932,0.6464864,110990.0,110980.0,0.16368]
[1756962400207,1.35455084,110990.0,110980.0,0.16068]
[1756962400426,0.18021265,110980.0,110970.0,0.18022759]
[1756962400633,0.18545265,110980.0,110970.0,0.43294358]
[1756962400841,0.76417456,110980.0,110970.0,0.43294358]
[1756962401046,0.00524,110980.0,110970.0,0.43294358]
[1756962401267,0.76417456,110980.0,110970.0,0.43294358]
[1756962402353,0.76417456,110980.0,110970.0,0.27214358]
[1756962402594,0.76417456,110980.0,110970.0,0.43294358]
[1756962402834,0.00524,110980.0,110970.0,0.43294358]
[1756962403037,0.76517456,110980.0,110970.0,0.43594358]
[1756962403962,0.00624,110980.0,110970.0,0.43594358]
[1756962404164,0.75993456,110980.0,110970.0,0.43791358]
[1756962404371,0.75993456,110980.0,110970.0,0.44112358]
[1756962405839,0.001,110980.0,110970.0,0.44112358]
[1756962406238,0.76197456,110980.0,110970.0,0.27711358]
[1756962406430,0.76197456,110980.0,110970.0,0.27514358]
[1756962406431,0.76517456,110980.0,110970.0,0.27514358]
[1756962406651,0.94538721,110980.0,110970.0,0.43630358]
[1756962407158,0.76517456,110980.0,110970.0,0.43630358]
[1756962407594,0.94538721,110980.0,110970.0,0.43670358]
[1756962407970,0.76517456,110980.0,110970.0,0.43670358]
[1756962408604,0.00624,110980.0,110970.0,0.43670358]
[1756962408827,0.76517456,110980.0,110970.0,0.43670358]
[1756962409030,0.76517456,110980.0,110970.0,0.27711358]
[1756962409235,0.00624,110980.0,110970.0,0.43859358]
[1756962410975,0.76197456,110980.0,110970.0,0.43859358]
[1756962411187,0.00304,110980.0,110970.0,0.43859358]
[1756962411546,0.001,110980.0,110970.0,0.43859358]
[1756962411744,0.00304,110980.0,110970.0,0.43859358]
[1756962412154,0.00624,110980.0,110970.0,0.27711358]
[1756962412405,0.00624,110980.0,110970.0,0.43839358]
[1756962413491,0.00624,110980.0,110970.0,0.27711358]
[1756962413671,0.00624,110980.0,110970.0,0.43831358]
[1756962413924,0.76517456,110980.0,110970.0,0.43622358]
[1756962414738,0.00624,110980.0,110970.0,0.43622358]
[1756962414936,0.76517456,110980.0,110970.0,0.43622358]
[1756962415450,0.00624,110980.0,110970.0,0.43622358]
[1756962415649,0.76517456,110980.0,110970.0,0.27514358]
[1756962415855,0.76517456,110980.0,110970.0,0.43626358]
[1756962416404,1.28538721,110980.0,110970.0,0.09491599]
[1756962416616,1.28538721,110980.0,110970.0,0.003]
[1756962416617,1.4047672,110980.0,110970.0,0.003]
[1756962416821,1.52435755,110980.0,110970.0,0.16448]
[1756962417426,1.43244156,110980.0,110970.0,0.16448]
[1756962417774,1.438724,110980.0,110970.0,0.003]
[1756962417993,1.46581307,110980.0,110960.0,0.16136]
[1756962418218,1.35862247,110970.0,110960.0,0.16136]
[1756962418414,0.18024513,110960.0,110950.0,0.0001401]
[1756962418621,0.94121969,110960.0,110950.0,0.25333609]
[1756962418933,0.94441969,110960.0,110950.0,0.43359746]
[1756962419439,0.94441969,110960.0,110950.0,0.09205609]
[1756962419649,0.94441969,110960.0,110950.0,0.1613401]
[1756962419650,1.01392956,110960.0,110950.0,0.1613401]
[1756962420300,0.254995,110960.0,110950.0,0.0001401]
[1756962420499,1.01392956,110960.0,110950.0,0.1613001]
[1756962421185,0.94441969,110960.0,110950.0,0.43573072]
[1756962421397,0.76417456,110960.0,110950.0,0.43544746]
[1756962421576,0.76517456,110960.0,110950.0,0.43744746]
[1756962421834,0.001,110960.0,110950.0,0.44065746]
[1756962425886,0.001,110960.0,110950.0,0.44053746]
[1756962426103,0.001,110960.0,110950.0,0.27949746]
[1756962426298,0.001,110960.0,110950.0,0.44049746]
[1756962428638,0.001,110960.0,110950.0,0.44029746]
[1756962431237,0.001,110960.0,110950.0,0.44001746]
[1756962432196,0.001,110960.0,110950.0,0.27949746]
[1756962432405,0.001,110960.0,110950.0,0.43680746]
[1756962432848,0.76520456,110960.0,110950.0,0.43479746]
[1756962433071,0.00627,110960.0,110950.0,0.43479746]
[1756962433247,0.00627,110960.0,110950.0,0.43682746]
[1756962433499,0.00627,110960.0,110950.0,0.43483746]
[1756962433702,0.00627,110960.0,110950.0,0.43479746]
[1756962434843,0.00627,110960.0,110950.0,0.27431746]
[1756962435049,0.00627,110960.0,110950.0,0.43471746]
[1756962435245,0.94544969,110960.0,110950.0,0.09405609]
[1756962435491,0.99531981,110960.0,110950.0,0.25441609]
[1756962435698,0.99531981,110960.0,110950.0,0.25437609]
[1756962437078,1.06402968,110960.0,110950.0,0.1624601]
[1756962438313,1.40402968,110960.0,110950.0,0.1624601]
[1756962440810,1.40402968,110960.0,110950.0,0.34272147]
[1756962441625,1.20739717,110960.0,110950.0,0.34272147]
[1756962442485,1.02715204,110960.0,110950.0,0.34272147]
[1756962442693,1.20739717,110960.0,110950.0,0.34272147]
[1756962443084,1.00381204,110960.0,110950.0,0.34272147]
[1756962444017,1.00381204,110960.0,110950.0,0.34284147]
[1756962445169,1.00381204,110960.0,110950.0,0.34487147]
[1756962445377,0.95394192,110960.0,110950.0,0.34487147]
[1756962445571,1.00381204,110960.0,110950.0,0.34284147]
[1756962445853,1.00381204,110960.0,110950.0,0.34487147]
[1756962446267,1.00381204,110960.0,110950.0,0.34284147]
[1756962447278,1.00381204,110960.0,110950.0,0.43994746]
[1756962447279,0.001,110960.0,110950.0,0.43994746]
[1756962451442,0.001,110960.0,110950.0,1.02318833]
[1756962452512,0.001,110960.0,110950.0,1.02781846]
[1756962452723,0.001,110960.0,110950.0,1.02794834]
[1756962453580,1e-08,110960.0,110950.0,1.30835151]
[1756962453796,0.05007012,111010.0,110950.0,1.30835151]
[1756962453797,0.0002,111010.0,111000.0,0.18018018]
[1756962454026,0.0002,111010.0,111000.0,0.50368617]
[1756962454232,0.42155261,111010.0,111000.0,0.50368617]
[1756962454448,0.81356273,111010.0,111000.0,0.50368617]
[1756962454655,0.0002,111010.0,111000.0,0.9491376]
[1756962455064,0.00066749,111010.0,111000.0,0.9491376]
[1756962455269,0.00066749,111010.0,111000.0,0.52778499]
[1756962456839,0.00166749,111010.0,111000.0,0.52778499]
[1756962457248,0.00066749,111010.0,111000.0,0.52778499]
[1756962457452,0.00066749,111010.0,111000.0,0.52978499]
[1756962459806,0.00066749,111010.0,111000.0,0.56995204]
[1756962461275,0.00066749,111010.0,111000.0,1.11841512]
[1756962461477,0.00066749,111010.0,111000.0,0.57008192]
[1756962461710,0.00066749,111010.0,111000.0,1.11841512]
[1756962461922,0.00066749,111010.0,111000.0,0.57832132]
[1756962462102,0.00066749,111010.0,111000.0,1.12665452]
[1756962463378,0.00066749,111010.0,111000.0,1.12657452]
[1756962463660,0.00066749,111010.0,111000.0,0.41804132]
[1756962463868,0.00589749,111010.0,111000.0,0.41012131]
[1756962464081,0.55423069,111010.0,111000.0,0.34698544]
[1756962464295,0.57909069,111010.0,111000.0,0.34337617]
[1756962464504,0.57909069,111010.0,111000.0,0.50377617]
[1756962464709,0.00066749,111010.0,111000.0,0.50576617]
[1756962465125,0.00589749,111010.0,111000.0,0.50576617]
[1756962465299,0.00589749,111010.0,111000.0,0.50377617]
[1756962465449,0.00589749,111010.0,111000.0,0.50177617]
[1756962465873,0.55423069,111010.0,111000.0,0.50369617]